[Event "Titled Tuesday Blitz May 16 Early 2023"]
[White "Tomiello, Mateus Costamilan"]
[Black "Rian, Kapriaga"]
[WhiteFideId "22701958"]
[BlackFideId "7103263"]
[WhiteElo "1990"]
[BlackElo "2325"]
[Result "1-0"]
[Round "03"]
[TimeControl "180+2"]
[Date "2023.05.16"]
[WhiteClock "0:00:08"]
[BlackClock "0:00:00"]

1. e4 {[%clk 0:03:00]}  c6 {[%clk 0:02:54]} 2. d4 {[%clk 0:02:57]}  d5 {[%clk 0:02:50]} 3. Nc3 {[%clk 0:02:57]}  dxe4 {[%clk 0:02:49]} 4. Nxe4 {[%clk 0:02:56]}  Bf5 {[%clk 0:02:49]} 5. Ng3 {[%clk 0:02:56]}  Bg6 {[%clk 0:02:49]} 6. Nf3 {[%clk 0:02:53]}  Nd7 {[%clk 0:02:48]} 7. h4 {[%clk 0:02:54]}  h6 {[%clk 0:02:46]} 8. h5 {[%clk 0:02:54]}  Bh7 {[%clk 0:02:46]} 9. Bd3 {[%clk 0:02:46]}  Bxd3 {[%clk 0:02:46]} 10. Qxd3 {[%clk 0:02:47]}  e6 {[%clk 0:02:46]} 11. Bd2 {[%clk 0:02:46]}  Ngf6 {[%clk 0:02:44]} 12. O-O-O {[%clk 0:02:45]}  Be7 {[%clk 0:02:44]} 13. Kb1 {[%clk 0:02:45]}  O-O {[%clk 0:02:44]} 14. Ne4 {[%clk 0:02:38]}  c5 {[%clk 0:02:43]} 15. Be3 {[%clk 0:02:20]}  cxd4 {[%clk 0:02:39]} 16. Bxd4 {[%clk 0:02:20]}  Qc7 {[%clk 0:02:26]} 17. g4 {[%clk 0:02:13]}  Rac8 {[%clk 0:02:12]} 18. c3 {[%clk 0:02:12]}  Nxe4 {[%clk 0:02:02]} 19. Qxe4 {[%clk 0:02:11]}  Nc5 {[%clk 0:01:50]} 20. Qe3 {[%clk 0:02:07]}  Qc6 {[%clk 0:01:32]} 21. Rde1 {[%clk 0:01:46]}  Qb5 {[%clk 0:01:24]} 22. Ka1 {[%clk 0:01:33]}  Nd3 {[%clk 0:00:50]} 23. Re2 {[%clk 0:01:26]}  Rc6 {[%clk 0:00:41]} 24. Rd2 {[%clk 0:01:26]}  Nc5 {[%clk 0:00:34]} 25. Rg1 {[%clk 0:01:23]}  Ra6 {[%clk 0:00:31]} 26. Kb1 {[%clk 0:01:19]}  Qc4 {[%clk 0:00:18]} 27. b3 {[%clk 0:01:16]}  Nxb3 {[%clk 0:00:17]} 28. axb3 {[%clk 0:01:16]}  Qxb3+ {[%clk 0:00:17]} 29. Rb2 {[%clk 0:01:17]}  Qa3 {[%clk 0:00:16]} 30. g5 {[%clk 0:01:05]}  Bxg5 {[%clk 0:00:13]} 31. Rxg5 {[%clk 0:00:48]}  hxg5 {[%clk 0:00:13]} 32. Qxg5 {[%clk 0:00:42]}  f6 {[%clk 0:00:11]} 33. Qg4 {[%clk 0:00:37]}  Qa1+ {[%clk 0:00:10]} 34. Kc2 {[%clk 0:00:37]}  Qa4+ {[%clk 0:00:09]} 35. Kd2 {[%clk 0:00:37]}  Qc4 {[%clk 0:00:07]} 36. h6 {[%clk 0:00:35]}  Rf7 {[%clk 0:00:06]} 37. hxg7 {[%clk 0:00:27]}  Rxg7 {[%clk 0:00:06]} 38. Qh5 {[%clk 0:00:21]}  e5 {[%clk 0:00:05]} 39. Qe8+ {[%clk 0:00:20]}  Kh7 {[%clk 0:00:05]} 40. Qh5+ {[%clk 0:00:15]}  Kg8 {[%clk 0:00:05]} 41. Qe8+ {[%clk 0:00:15]}  Kh7 {[%clk 0:00:06]} 42. Be3 {[%clk 0:00:14]}  Rd6+ {[%clk 0:00:05]} 43. Ke1 {[%clk 0:00:10]}  Qg4 {[%clk 0:00:05]} 44. Ke2 {[%clk 0:00:10]}  e4 {[%clk 0:00:04]} 45. Bd4 {[%clk 0:00:07]}  Qxf3+ {[%clk 0:00:04]} 46. Kd2 {[%clk 0:00:07]}  Rxd4+ {[%clk 0:00:04]} 47. cxd4 {[%clk 0:00:07]}  Qxf2+ {[%clk 0:00:04]} 48. Kc3 {[%clk 0:00:07]}  Qe3+ {[%clk 0:00:04]} 49. Kc4 {[%clk 0:00:07]}  Qd3+ {[%clk 0:00:04]} 50. Kd5 {[%clk 0:00:07]}  Rg5+ {[%clk 0:00:03]} 51. Ke6 {[%clk 0:00:07]}  Qh3+ {[%clk 0:00:03]} 52. Kxf6 {[%clk 0:00:07]}  Qf5+ {[%clk 0:00:03]} 53. Ke7 {[%clk 0:00:07]}  Rg7+ {[%clk 0:00:03]} 54. Kd8 {[%clk 0:00:07]}  Qd5+ {[%clk 0:00:02]} 55. Kc8 {[%clk 0:00:07]}  Qc5+ {[%clk 0:00:00]} 56. Kb8 {[%clk 0:00:08]} 1-0


[Site "https://www.chess.com"]

[Event "Titled Tuesday Blitz May 16 Early 2023"]
[White "lluiss"]
[Black "Degenbaev, Aziz"]
[BlackFideId "13802640"]
[WhiteElo "2297"]
[BlackElo "2152"]
[Result "1/2-1/2"]
[Round "03"]
[TimeControl "180+2"]
[Date "2023.05.16"]
[WhiteClock "0:00:07"]
[BlackClock "0:00:06"]

1. Nf3 {[%clk 0:03:00]}  Nf6 {[%clk 0:02:59]} 2. c4 {[%clk 0:03:00]}  g6 {[%clk 0:02:59]} 3. g3 {[%clk 0:02:59]}  Bg7 {[%clk 0:03:00]} 4. Bg2 {[%clk 0:03:00]}  O-O {[%clk 0:03:00]} 5. O-O {[%clk 0:03:00]}  c5 {[%clk 0:03:01]} 6. Nc3 {[%clk 0:02:59]}  Nc6 {[%clk 0:02:59]} 7. d4 {[%clk 0:02:59]}  d6 {[%clk 0:03:00]} 8. dxc5 {[%clk 0:02:58]}  dxc5 {[%clk 0:03:00]} 9. Be3 {[%clk 0:02:58]}  Be6 {[%clk 0:02:53]} 10. Qa4 {[%clk 0:02:48]}  Qb6 {[%clk 0:02:49]} 11. Qb5 {[%clk 0:02:47]}  Nd7 {[%clk 0:02:25]} 12. Ng5 {[%clk 0:02:45]}  Bf5 {[%clk 0:02:19]} 13. Nd5 {[%clk 0:02:43]}  Qxb5 {[%clk 0:02:19]} 14. cxb5 {[%clk 0:02:42]}  Nd4 {[%clk 0:02:16]} 15. Nxe7+ {[%clk 0:02:41]}  Kh8 {[%clk 0:02:17]} 16. Bxd4 {[%clk 0:02:21]}  cxd4 {[%clk 0:02:16]} 17. Nxf5 {[%clk 0:02:21]}  gxf5 {[%clk 0:02:17]} 18. Bxb7 {[%clk 0:02:20]}  Rab8 {[%clk 0:02:17]} 19. Bc6 {[%clk 0:02:20]}  Ne5 {[%clk 0:02:17]} 20. Bd5 {[%clk 0:01:32]}  Rxb5 {[%clk 0:02:10]} 21. Bb3 {[%clk 0:01:32]}  h6 {[%clk 0:02:09]} 22. Nh3 {[%clk 0:01:25]}  a5 {[%clk 0:02:02]} 23. Nf4 {[%clk 0:01:21]}  a4 {[%clk 0:02:00]} 24. Bxa4 {[%clk 0:01:21]}  Rxb2 {[%clk 0:02:00]} 25. Bb3 {[%clk 0:01:21]}  Ra8 {[%clk 0:01:53]} 26. Rac1 {[%clk 0:01:19]}  Bf6 {[%clk 0:01:33]} 27. Rc5 {[%clk 0:01:12]}  Re8 {[%clk 0:01:13]} 28. Rfc1 {[%clk 0:01:10]}  d3 {[%clk 0:01:11]} 29. exd3 {[%clk 0:01:04]}  Nf3+ {[%clk 0:01:08]} 30. Kg2 {[%clk 0:01:04]}  Bd4 {[%clk 0:01:06]} 31. R5c2 {[%clk 0:01:01]}  Ne1+ {[%clk 0:01:02]} 32. Rxe1 {[%clk 0:00:56]}  Rxe1 {[%clk 0:01:02]} 33. Rxb2 {[%clk 0:00:49]}  Bxb2 {[%clk 0:01:03]} 34. Bxf7 {[%clk 0:00:49]}  Bd4 {[%clk 0:01:01]} 35. Bc4 {[%clk 0:00:48]}  Rb1 {[%clk 0:00:58]} 36. Ne6 {[%clk 0:00:48]}  Bb6 {[%clk 0:00:57]} 37. Bb3 {[%clk 0:00:44]}  Rb2 {[%clk 0:00:55]} 38. d4 {[%clk 0:00:44]}  Rd2 {[%clk 0:00:52]} 39. Kf3 {[%clk 0:00:41]}  Bxd4 {[%clk 0:00:52]} 40. Nxd4 {[%clk 0:00:27]}  Rxd4 {[%clk 0:00:52]} 41. Be6 {[%clk 0:00:23]}  Ra4 {[%clk 0:00:38]} 42. Bxf5 {[%clk 0:00:22]}  Rxa2 {[%clk 0:00:38]} 43. Kg2 {[%clk 0:00:20]}  Kg7 {[%clk 0:00:38]} 44. Bg4 {[%clk 0:00:20]}  Kf6 {[%clk 0:00:38]} 45. Bf3 {[%clk 0:00:20]}  Ke5 {[%clk 0:00:37]} 46. h4 {[%clk 0:00:21]}  Rb2 {[%clk 0:00:35]} 47. Bg4 {[%clk 0:00:20]}  Kd4 {[%clk 0:00:35]} 48. Bf3 {[%clk 0:00:20]}  Kd3 {[%clk 0:00:35]} 49. g4 {[%clk 0:00:20]}  Rb5 {[%clk 0:00:27]} 50. Kg3 {[%clk 0:00:20]}  Kd2 {[%clk 0:00:21]} 51. Bg2 {[%clk 0:00:19]}  Ke2 {[%clk 0:00:19]} 52. Bf3+ {[%clk 0:00:17]}  Kf1 {[%clk 0:00:18]} 53. Bc6 {[%clk 0:00:10]}  Rb3+ {[%clk 0:00:14]} 54. Kf4 {[%clk 0:00:07]}  Kxf2 {[%clk 0:00:14]} 55. g5 {[%clk 0:00:07]}  hxg5+ {[%clk 0:00:13]} 56. hxg5 {[%clk 0:00:07]}  Rg3 {[%clk 0:00:13]} 57. Be4 {[%clk 0:00:07]}  Rh3 {[%clk 0:00:07]} 58. g6 {[%clk 0:00:07]}  Rh4+ {[%clk 0:00:07]} 59. Kf5 {[%clk 0:00:06]}  Rh8 {[%clk 0:00:06]} 60. g7 {[%clk 0:00:06]}  Rg8 {[%clk 0:00:06]} 61. Kf6 {[%clk 0:00:07]}  Ke3 {[%clk 0:00:06]} 62. Kf7 {[%clk 0:00:07]}  Rxg7+ {[%clk 0:00:06]} 63. Kxg7 {[%clk 0:00:07]} 1/2-1/2


[Site "https://www.chess.com"]

[Event "Titled Tuesday Blitz May 16 Early 2023"]
[White "Kuzmin, Roman"]
[Black "Balint, Vilmos"]
[WhiteFideId "44134932"]
[BlackFideId "718050"]
[WhiteElo "2122"]
[BlackElo "2034"]
[Result "1-0"]
[Round "03"]
[TimeControl "180+2"]
[Date "2023.05.16"]
[WhiteClock "0:01:25"]
[BlackClock "0:00:57"]

1. e4 {[%clk 0:03:00]}  e6 {[%clk 0:02:58]} 2. d4 {[%clk 0:03:00]}  d5 {[%clk 0:02:57]} 3. Nc3 {[%clk 0:03:01]}  Bb4 {[%clk 0:02:56]} 4. e5 {[%clk 0:03:01]}  Ne7 {[%clk 0:02:56]} 5. a3 {[%clk 0:03:00]}  Bxc3+ {[%clk 0:02:57]} 6. bxc3 {[%clk 0:03:01]}  b6 {[%clk 0:02:57]} 7. Qg4 {[%clk 0:02:52]}  Ng6 {[%clk 0:02:57]} 8. a4 {[%clk 0:02:46]}  h5 {[%clk 0:02:57]} 9. Qg3 {[%clk 0:02:43]}  Nc6 {[%clk 0:02:55]} 10. Ba3 {[%clk 0:02:37]}  Nce7 {[%clk 0:02:34]} 11. Bd3 {[%clk 0:02:37]}  h4 {[%clk 0:02:34]} 12. Qg4 {[%clk 0:02:36]}  c5 {[%clk 0:02:34]} 13. Nh3 {[%clk 0:02:00]}  Qc7 {[%clk 0:02:32]} 14. O-O {[%clk 0:01:55]}  Bd7 {[%clk 0:02:28]} 15. a5 {[%clk 0:01:48]}  c4 {[%clk 0:02:07]} 16. Bxg6 {[%clk 0:01:45]}  Nxg6 {[%clk 0:02:07]} 17. Bd6 {[%clk 0:01:40]}  Qc6 {[%clk 0:02:02]} 18. Nf4 {[%clk 0:01:31]}  Nxf4 {[%clk 0:01:49]} 19. Qxf4 {[%clk 0:01:32]}  O-O-O {[%clk 0:01:29]} 20. axb6 {[%clk 0:01:32]}  axb6 {[%clk 0:01:25]} 21. Ra7 {[%clk 0:01:32]}  Be8 {[%clk 0:01:16]} 22. Rfa1 {[%clk 0:01:26]}  Rxd6 {[%clk 0:01:11]} 23. exd6 {[%clk 0:01:27]}  Qb5 {[%clk 0:00:57]} 24. d7+ {[%clk 0:01:25]} 1-0


[Site "https://www.chess.com"]

[Event "Titled Tuesday Blitz May 16 Early 2023"]
[White "Antonio, Jorge Carlos"]
[Black "Titichoca Daza, Daniel"]
[WhiteFideId "113190"]
[BlackFideId "3309550"]
[WhiteElo "2247"]
[BlackElo "2101"]
[Result "0-1"]
[Round "03"]
[TimeControl "180+2"]
[Date "2023.05.16"]
[WhiteClock "0:00:00"]
[BlackClock "0:00:12"]

1. e4 {[%clk 0:03:00]}  e5 {[%clk 0:02:58]} 2. Nf3 {[%clk 0:03:01]}  Nc6 {[%clk 0:02:59]} 3. Bb5 {[%clk 0:02:59]}  a6 {[%clk 0:02:58]} 4. Ba4 {[%clk 0:02:58]}  Nf6 {[%clk 0:02:58]} 5. d3 {[%clk 0:02:57]}  Be7 {[%clk 0:02:58]} 6. O-O {[%clk 0:02:55]}  b5 {[%clk 0:02:57]} 7. Bb3 {[%clk 0:02:41]}  O-O {[%clk 0:02:57]} 8. a4 {[%clk 0:02:38]}  Rb8 {[%clk 0:02:52]} 9. axb5 {[%clk 0:02:34]}  axb5 {[%clk 0:02:53]} 10. Nc3 {[%clk 0:02:32]}  d6 {[%clk 0:02:52]} 11. Nd5 {[%clk 0:02:29]}  Bg4 {[%clk 0:02:40]} 12. c3 {[%clk 0:02:25]}  b4 {[%clk 0:02:40]} 13. h3 {[%clk 0:02:19]}  Bxf3 {[%clk 0:02:39]} 14. gxf3 {[%clk 0:02:15]}  bxc3 {[%clk 0:02:37]} 15. bxc3 {[%clk 0:02:11]}  Nd7 {[%clk 0:02:32]} 16. Ba4 {[%clk 0:02:05]}  Ra8 {[%clk 0:01:26]} 17. Be3 {[%clk 0:02:04]}  Ncb8 {[%clk 0:01:22]} 18. Kh2 {[%clk 0:01:58]}  Nf6 {[%clk 0:01:19]} 19. Nxe7+ {[%clk 0:01:54]}  Qxe7 {[%clk 0:01:18]} 20. Rg1 {[%clk 0:01:53]}  Nbd7 {[%clk 0:01:15]} 21. Bh6 {[%clk 0:01:41]}  Nh5 {[%clk 0:01:12]} 22. Bxd7 {[%clk 0:01:33]}  Rxa1 {[%clk 0:01:06]} 23. Qxa1 {[%clk 0:01:24]}  Qxd7 {[%clk 0:01:07]} 24. Rg5 {[%clk 0:01:18]}  Kh8 {[%clk 0:01:00]} 25. Rxh5 {[%clk 0:01:13]}  gxh6 {[%clk 0:00:55]} 26. Rf5 {[%clk 0:01:11]}  f6 {[%clk 0:00:53]} 27. Qc1 {[%clk 0:01:09]}  Qg7 {[%clk 0:00:50]} 28. Qg1 {[%clk 0:01:02]}  Ra8 {[%clk 0:00:46]} 29. f4 {[%clk 0:00:54]}  Qxg1+ {[%clk 0:00:43]} 30. Kxg1 {[%clk 0:00:53]}  Kg7 {[%clk 0:00:44]} 31. fxe5 {[%clk 0:00:46]}  fxe5 {[%clk 0:00:44]} 32. Kg2 {[%clk 0:00:40]}  Ra3 {[%clk 0:00:40]} 33. d4 {[%clk 0:00:34]}  Rxc3 {[%clk 0:00:39]} 34. dxe5 {[%clk 0:00:33]}  Rc5 {[%clk 0:00:37]} 35. f4 {[%clk 0:00:29]}  dxe5 {[%clk 0:00:33]} 36. fxe5 {[%clk 0:00:26]}  Rc3 {[%clk 0:00:33]} 37. h4 {[%clk 0:00:23]}  Re3 {[%clk 0:00:29]} 38. Kf2 {[%clk 0:00:14]}  Rxe4 {[%clk 0:00:26]} 39. h5 {[%clk 0:00:14]}  c5 {[%clk 0:00:21]} 40. Kf3 {[%clk 0:00:08]}  Re1 {[%clk 0:00:20]} 41. Kf2 {[%clk 0:00:08]}  Rd1 {[%clk 0:00:18]} 42. Ke2 {[%clk 0:00:07]}  Rd7 {[%clk 0:00:16]} 43. e6 {[%clk 0:00:06]}  Rc7 {[%clk 0:00:14]} 44. Re5 {[%clk 0:00:00]}  Kf6 {[%clk 0:00:12]} 0-1


[Site "https://www.chess.com"]

[Event "Titled Tuesday Blitz May 16 Early 2023"]
[White "Thiel, Thomas"]
[Black "Rangel, Daniel"]
[WhiteFideId "4615964"]
[BlackFideId "2124475"]
[WhiteElo "2188"]
[BlackElo "2256"]
[Result "1-0"]
[Round "03"]
[TimeControl "180+2"]
[Date "2023.05.16"]
[WhiteClock "0:00:24"]
[BlackClock "0:01:15"]

1. e4 {[%clk 0:03:00]}  c5 {[%clk 0:02:15]} 2. Nc3 {[%clk 0:02:58]}  g6 {[%clk 0:02:14]} 3. d4 {[%clk 0:02:55]}  cxd4 {[%clk 0:02:15]} 4. Qxd4 {[%clk 0:02:54]}  Nf6 {[%clk 0:02:15]} 5. Be3 {[%clk 0:02:52]}  Nc6 {[%clk 0:02:15]} 6. Qd2 {[%clk 0:02:51]}  Bg7 {[%clk 0:02:13]} 7. f3 {[%clk 0:02:50]}  O-O {[%clk 0:02:14]} 8. Nge2 {[%clk 0:02:50]}  d6 {[%clk 0:02:12]} 9. Nf4 {[%clk 0:02:49]}  Qd7 {[%clk 0:02:11]} 10. O-O-O {[%clk 0:02:42]}  Qc7 {[%clk 0:02:10]} 11. Kb1 {[%clk 0:02:36]}  Qa5 {[%clk 0:02:10]} 12. h4 {[%clk 0:02:27]}  h5 {[%clk 0:02:03]} 13. Bc4 {[%clk 0:02:18]}  Ne5 {[%clk 0:02:01]} 14. Bb3 {[%clk 0:02:15]}  Be6 {[%clk 0:02:01]} 15. Nxe6 {[%clk 0:02:07]}  fxe6 {[%clk 0:02:01]} 16. Bxe6+ {[%clk 0:02:05]}  Kh7 {[%clk 0:02:01]} 17. Nd5 {[%clk 0:01:47]}  Qxd2 {[%clk 0:01:57]} 18. Rxd2 {[%clk 0:01:43]}  Nc4 {[%clk 0:01:55]} 19. Nxf6+ {[%clk 0:01:40]}  Bxf6 {[%clk 0:01:54]} 20. Bxc4 {[%clk 0:01:40]}  Rfc8 {[%clk 0:01:55]} 21. Bd5 {[%clk 0:01:38]}  Rab8 {[%clk 0:01:54]} 22. Bxa7 {[%clk 0:01:35]}  Ra8 {[%clk 0:01:51]} 23. Bd4 {[%clk 0:01:29]}  e5 {[%clk 0:01:48]} 24. Be3 {[%clk 0:01:23]}  Rd8 {[%clk 0:01:48]} 25. Bg5 {[%clk 0:01:22]}  Bxg5 {[%clk 0:01:48]} 26. hxg5 {[%clk 0:01:22]}  Rab8 {[%clk 0:01:48]} 27. g4 {[%clk 0:01:21]}  b5 {[%clk 0:01:49]} 28. gxh5 {[%clk 0:01:21]}  gxh5 {[%clk 0:01:48]} 29. Rxh5+ {[%clk 0:01:17]}  Kg6 {[%clk 0:01:49]} 30. Rh4 {[%clk 0:01:06]}  b4 {[%clk 0:01:50]} 31. Rg4 {[%clk 0:01:05]}  Rh8 {[%clk 0:01:47]} 32. b3 {[%clk 0:01:05]}  Rh3 {[%clk 0:01:45]} 33. Rf2 {[%clk 0:01:01]}  Rf8 {[%clk 0:01:45]} 34. Be6 {[%clk 0:01:01]}  Rh1+ {[%clk 0:01:34]} 35. Kb2 {[%clk 0:00:59]}  Rd1 {[%clk 0:01:35]} 36. Bf5+ {[%clk 0:00:55]}  Kg7 {[%clk 0:01:34]} 37. Rh2 {[%clk 0:00:51]}  d5 {[%clk 0:01:22]} 38. Rh7+ {[%clk 0:00:46]}  Kg8 {[%clk 0:01:22]} 39. g6 {[%clk 0:00:46]}  Re8 {[%clk 0:01:15]} 40. g7 {[%clk 0:00:46]}  Rh1 {[%clk 0:01:10]} 41. Rxh1 {[%clk 0:00:44]}  Kf7 {[%clk 0:01:10]} 42. Rh8 {[%clk 0:00:42]}  Rg8 {[%clk 0:01:09]} 43. Rxg8 {[%clk 0:00:38]}  dxe4 {[%clk 0:01:10]} 44. Rf8+ {[%clk 0:00:35]}  Ke7 {[%clk 0:01:10]} 45. g8=Q {[%clk 0:00:34]}  exf3 {[%clk 0:01:11]} 46. Qf7+ {[%clk 0:00:33]}  Kd6 {[%clk 0:01:11]} 47. Be4 {[%clk 0:00:32]}  Kc5 {[%clk 0:01:12]} 48. Qxf3 {[%clk 0:00:29]}  Kd4 {[%clk 0:01:13]} 49. Qd3+ {[%clk 0:00:27]}  Kc5 {[%clk 0:01:14]} 50. Qd5+ {[%clk 0:00:27]}  Kb6 {[%clk 0:01:14]} 51. Rg6+ {[%clk 0:00:26]}  Kc7 {[%clk 0:01:14]} 52. Rf7+ {[%clk 0:00:25]}  Kc8 {[%clk 0:01:15]} 53. Rg8# {[%clk 0:00:24]} 1-0


[Site "https://www.chess.com"]

[Event "Titled Tuesday Blitz May 16 Early 2023"]
[White "Mika, Tomasz"]
[Black "Cramling Bellon, Anna"]
[WhiteFideId "1132970"]
[BlackFideId "32009232"]
[WhiteElo "2179"]
[BlackElo "1976"]
[Result "1-0"]
[Round "03"]
[TimeControl "180+2"]
[Date "2023.05.16"]
[WhiteClock "0:01:24"]
[BlackClock "0:00:03"]

1. d4 {[%clk 0:02:53]}  Nf6 {[%clk 0:02:58]} 2. Bf4 {[%clk 0:02:53]}  d5 {[%clk 0:02:58]} 3. Nf3 {[%clk 0:02:53]}  c5 {[%clk 0:02:57]} 4. e3 {[%clk 0:02:53]}  Nc6 {[%clk 0:02:57]} 5. Nbd2 {[%clk 0:02:53]}  cxd4 {[%clk 0:02:55]} 6. exd4 {[%clk 0:02:53]}  Bf5 {[%clk 0:02:52]} 7. c3 {[%clk 0:02:53]}  e6 {[%clk 0:02:52]} 8. Be2 {[%clk 0:02:52]}  Be7 {[%clk 0:02:51]} 9. O-O {[%clk 0:02:52]}  h6 {[%clk 0:02:51]} 10. Re1 {[%clk 0:02:53]}  O-O {[%clk 0:02:50]} 11. Ne5 {[%clk 0:02:53]}  Nxe5 {[%clk 0:02:49]} 12. Bxe5 {[%clk 0:02:53]}  Nd7 {[%clk 0:02:49]} 13. Bg3 {[%clk 0:02:53]}  Rc8 {[%clk 0:02:44]} 14. Nf3 {[%clk 0:02:50]}  Qb6 {[%clk 0:02:42]} 15. Qb3 {[%clk 0:02:50]}  a6 {[%clk 0:02:22]} 16. Ne5 {[%clk 0:02:49]}  Qxb3 {[%clk 0:02:19]} 17. axb3 {[%clk 0:02:50]}  Nxe5 {[%clk 0:02:18]} 18. Bxe5 {[%clk 0:02:50]}  Bc2 {[%clk 0:02:17]} 19. b4 {[%clk 0:02:50]}  Rfd8 {[%clk 0:01:56]} 20. Bg3 {[%clk 0:02:39]}  Bd6 {[%clk 0:01:44]} 21. Bxd6 {[%clk 0:02:37]}  Rxd6 {[%clk 0:01:45]} 22. f4 {[%clk 0:02:37]}  b5 {[%clk 0:01:12]} 23. Kf2 {[%clk 0:02:30]}  Bb3 {[%clk 0:01:02]} 24. Ra3 {[%clk 0:02:28]}  Bc4 {[%clk 0:01:01]} 25. Bf3 {[%clk 0:02:28]}  Bd3 {[%clk 0:00:53]} 26. Ke3 {[%clk 0:02:28]}  Bc2 {[%clk 0:00:48]} 27. Kd2 {[%clk 0:02:27]}  Bg6 {[%clk 0:00:45]} 28. g3 {[%clk 0:02:26]}  Rcc6 {[%clk 0:00:29]} 29. h3 {[%clk 0:02:25]}  Bh7 {[%clk 0:00:24]} 30. Raa1 {[%clk 0:02:23]}  g5 {[%clk 0:00:24]} 31. Re5 {[%clk 0:02:12]}  f6 {[%clk 0:00:20]} 32. Re3 {[%clk 0:02:09]}  gxf4 {[%clk 0:00:20]} 33. gxf4 {[%clk 0:02:10]}  Bf5 {[%clk 0:00:20]} 34. Rg1+ {[%clk 0:02:08]}  Kf8 {[%clk 0:00:18]} 35. Bh5 {[%clk 0:02:05]}  Rd7 {[%clk 0:00:15]} 36. Reg3 {[%clk 0:02:04]}  Bh7 {[%clk 0:00:09]} 37. Bg6 {[%clk 0:01:56]}  Rg7 {[%clk 0:00:06]} 38. Bxh7 {[%clk 0:01:54]}  Rxh7 {[%clk 0:00:06]} 39. Rg8+ {[%clk 0:01:53]}  Ke7 {[%clk 0:00:05]} 40. Ra8 {[%clk 0:01:53]}  Kd6 {[%clk 0:00:04]} 41. Rgg8 {[%clk 0:01:49]}  Rcc7 {[%clk 0:00:05]} 42. Rxa6+ {[%clk 0:01:47]}  Ke7 {[%clk 0:00:05]} 43. Rb6 {[%clk 0:01:41]}  Kf7 {[%clk 0:00:05]} 44. Rg1 {[%clk 0:01:36]}  h5 {[%clk 0:00:06]} 45. Rxb5 {[%clk 0:01:35]}  h4 {[%clk 0:00:06]} 46. Rc5 {[%clk 0:01:32]}  Ra7 {[%clk 0:00:06]} 47. b5 {[%clk 0:01:29]}  Ke7 {[%clk 0:00:06]} 48. Rg8 {[%clk 0:01:25]}  Kf7 {[%clk 0:00:03]} 49. Rgc8 {[%clk 0:01:24]}  Rg7 {[%clk 0:00:02]} 50. R8c7+ {[%clk 0:01:24]}  Rxc7 {[%clk 0:00:02]} 51. Rxc7+ {[%clk 0:01:25]}  Kf8 {[%clk 0:00:03]} 52. Rxg7 {[%clk 0:01:24]}  Kxg7 {[%clk 0:00:03]} 1-0


[Site "https://www.chess.com"]

[Event "Titled Tuesday Blitz May 16 Early 2023"]
[White "Smirnov, Pavel"]
[Black "Buchenau, Frank"]
[WhiteFideId "4123425"]
[BlackFideId "4604350"]
[WhiteElo "2520"]
[BlackElo "2157"]
[Result "1-0"]
[Round "03"]
[TimeControl "180+2"]
[Date "2023.05.16"]
[WhiteClock "0:02:12"]
[BlackClock "0:00:26"]

1. d4 {[%clk 0:02:59]}  e6 {[%clk 0:02:59]} 2. Nf3 {[%clk 0:02:57]}  Nf6 {[%clk 0:02:59]} 3. g3 {[%clk 0:02:58]}  b6 {[%clk 0:02:59]} 4. Bg2 {[%clk 0:02:59]}  Bb7 {[%clk 0:02:59]} 5. O-O {[%clk 0:03:00]}  Be7 {[%clk 0:03:00]} 6. c4 {[%clk 0:02:59]}  O-O {[%clk 0:02:59]} 7. Nc3 {[%clk 0:02:59]}  Ne4 {[%clk 0:02:57]} 8. Bd2 {[%clk 0:02:59]}  f5 {[%clk 0:02:57]} 9. Ne5 {[%clk 0:03:00]}  Nxc3 {[%clk 0:02:48]} 10. Bxc3 {[%clk 0:03:00]}  Bxg2 {[%clk 0:02:48]} 11. Kxg2 {[%clk 0:03:01]}  Bf6 {[%clk 0:02:30]} 12. Qd3 {[%clk 0:02:58]}  Bxe5 {[%clk 0:02:27]} 13. dxe5 {[%clk 0:02:58]}  Nc6 {[%clk 0:02:05]} 14. Rad1 {[%clk 0:02:56]}  Rf7 {[%clk 0:02:03]} 15. f4 {[%clk 0:02:55]}  a5 {[%clk 0:01:53]} 16. Qf3 {[%clk 0:02:56]}  Qe7 {[%clk 0:01:44]} 17. Rd2 {[%clk 0:02:57]}  Rd8 {[%clk 0:01:37]} 18. Rfd1 {[%clk 0:02:57]}  h6 {[%clk 0:01:35]} 19. h4 {[%clk 0:02:55]}  Kh7 {[%clk 0:01:30]} 20. h5 {[%clk 0:02:56]}  Qf8 {[%clk 0:01:19]} 21. Kh2 {[%clk 0:02:57]}  Qg8 {[%clk 0:01:11]} 22. g4 {[%clk 0:02:31]}  g6 {[%clk 0:01:04]} 23. Rg1 {[%clk 0:02:23]}  Rg7 {[%clk 0:01:01]} 24. Rdd1 {[%clk 0:02:17]}  Rf8 {[%clk 0:00:46]} 25. hxg6+ {[%clk 0:02:14]}  Rxg6 {[%clk 0:00:46]} 26. Rxd7+ {[%clk 0:02:14]}  Rf7 {[%clk 0:00:38]} 27. Rxf7+ {[%clk 0:02:12]}  Qxf7 {[%clk 0:00:37]} 28. Qxc6 {[%clk 0:02:13]}  Rxg4 {[%clk 0:00:35]} 29. Rxg4 {[%clk 0:02:12]}  Qh5+ {[%clk 0:00:34]} 30. Kg1 {[%clk 0:02:13]}  Qxg4+ {[%clk 0:00:26]} 31. Qg2 {[%clk 0:02:12]} 1-0


[Site "https://www.chess.com"]